lending/lending_fUSD_20241214
["ID","MTS","AMOUNT","RATE_DAILY","PERIOD"]
[345341529,1734161445840,-500.0,0.00021249,3]
[345341531,1734161445849,-500.0,0.00021249,3]
[345341532,1734161445859,-500.0,0.00021249,3]
[345341534,1734161445868,-195.34,0.00021249,3]
[345341536,1734161445877,-500.0,0.00021249,3]
[345341538,1734161445886,-493.33,0.00021249,3]
[345341540,1734161445895,-500.0,0.00021249,3]
[345341542,1734161445903,-500.0,0.00021249,3]
[345341544,1734161445913,-294.58,0.00021249,3]
[345341546,1734161445922,-500.0,0.00021249,3]
[345341548,1734161445933,-500.0,0.00021249,3]
[345341550,1734161445942,-500.0,0.00021249,3]
[345341552,1734161445952,-336.16,0.00021249,3]
[345341554,1734161445961,-500.0,0.00021249,3]
[345341556,1734161445970,-500.0,0.00021249,3]
[345341558,1734161445979,-500.0,0.00021249,3]
[345341560,1734161445989,-500.0,0.00021249,3]
[345341562,1734161445998,-500.0,0.00021249,3]
[345341564,1734161446008,-500.0,0.00021249,3]
[345341566,1734161446019,-500.0,0.00021249,3]
[345341568,1734161446028,-500.0,0.00021249,3]
[345341570,1734161446038,-500.0,0.00021249,3]
[345341572,1734161446048,-500.0,0.00021249,3]
[345341574,1734161446058,-279.63,0.00021249,3]
[345341576,1734161446067,-500.0,0.00021249,3]
[345341589,1734161446180,-500.0,0.00021249,3]
[345341591,1734161446190,-500.0,0.00021249,3]
[345341593,1734161446200,-185.66,0.00021249,3]
[345341595,1734161446209,-520.8,0.00021249,3]
[345341597,1734161446218,-500.0,0.00021249,3]
[345341599,1734161446228,-500.0,0.00021249,3]
[345341601,1734161446237,-647.21,0.00021249,3]
[345341603,1734161446247,-232.04,0.00021249,3]
[345341605,1734161446256,-500.0,0.00021249,3]
[345341607,1734161446265,-500.0,0.00021249,3]
[345341609,1734161446275,-337.17,0.00021249,3]
[345341611,1734161446284,-500.0,0.00021249,3]
[345341612,1734161446293,-500.0,0.00021249,3]
[345341614,1734161446303,-500.0,0.00021249,3]
[345341617,1734161446312,-500.0,0.00021249,3]
[345341618,1734161446322,-500.0,0.00021249,3]
[345341620,1734161446332,-500.0,0.00021249,3]
[345341622,1734161446341,-500.0,0.00021249,3]
[345341624,1734161446351,-500.0,0.00021249,3]
[345341626,1734161446360,-500.0,0.00021249,3]
[345341628,1734161446370,-500.0,0.00021249,3]
[345341630,1734161446379,-500.0,0.00021249,3]
[345341632,1734161446388,-500.0,0.00021249,3]
[345341634,1734161446398,-500.0,0.00021249,3]
[345341636,1734161446407,-500.0,0.00021249,3]
[345341638,1734161446416,-500.0,0.00021249,3]
[345341640,1734161446425,-211.02,0.00021249,3]
[345341642,1734161446435,-500.0,0.00021249,3]
[345341644,1734161446444,-500.0,0.00021249,3]
[345341646,1734161446454,-500.0,0.00021249,3]
[345341649,1734161446463,-238.82,0.00021249,3]
[345341650,1734161446472,-500.0,0.00021249,3]
[345341653,1734161446482,-500.0,0.00021249,3]
[345341655,1734161446491,-500.0,0.00021249,3]
[345341657,1734161446500,-500.0,0.00021249,3]
[345341659,1734161446510,-500.0,0.00021249,3]
[345341661,1734161446521,-500.0,0.00021249,3]
[345341663,1734161446530,-290.4384088,0.00021249,3]
[345341664,1734161446539,-500.0,0.00021249,3]
[345341667,1734161446549,-500.0,0.00021249,3]
[345341669,1734161446559,-255.46,0.00021249,3]
[345341670,1734161446568,-500.0,0.00021249,3]
[345341673,1734161446577,-500.0,0.00021249,3]
[345341675,1734161446587,-500.0,0.00021249,3]
[345341676,1734161446598,-500.0,0.00021249,3]
[345341678,1734161446607,-500.0,0.00021249,3]
[345341681,1734161446617,-500.0,0.00021249,3]
[345341683,1734161446626,-500.0,0.00021249,3]
[345341684,1734161446635,-163.47,0.00021249,3]
[345341686,1734161446646,-500.0,0.00021249,3]
[345341688,1734161446655,-500.0,0.00021249,3]
[345341691,1734161446664,-500.0,0.00021249,3]
[345341693,1734161446675,-500.0,0.00021249,3]
[345341695,1734161446685,-500.0,0.00021249,3]
[345341696,1734161446693,-500.0,0.00021249,3]
[345341698,1734161446702,-363.02,0.00021249,3]
[345341700,1734161446711,-500.0,0.00021249,3]
[345341702,1734161446721,-500.0,0.00021249,3]
[345341705,1734161446730,-500.0,0.00021249,3]
[345341707,1734161446739,-500.0,0.00021249,3]
[345341709,1734161446749,-500.0,0.00021249,3]
[345341711,1734161446758,-498.59,0.00021249,3]
[345341713,1734161446768,-500.0,0.00021249,3]
[345341715,1734161446777,-500.0,0.00021249,3]
[345341717,1734161446786,-500.0,0.00021249,3]
[345341719,1734161446795,-500.0,0.00021249,3]
[345341721,1734161446804,-500.0,0.00021249,3]
[345341723,1734161446813,-500.0,0.00021249,3]
[345341725,1734161446823,-500.0,0.00021249,3]
[345341727,1734161446832,-500.0,0.00021249,3]
[345341729,1734161446841,-500.0,0.00021249,3]
[345341731,1734161446851,-500.0,0.00021249,3]
[345341733,1734161446860,-500.0,0.00021249,3]
[345341735,1734161446869,-500.0,0.00021249,3]
[345341737,1734161446879,-500.0,0.00021249,3]
[345341739,1734161446888,-429.5,0.00021249,3]
[345341741,1734161446898,-500.0,0.00021249,3]
[345341743,1734161446907,-500.0,0.00021249,3]
[345341745,1734161446916,-500.0,0.00021249,3]
[345341746,1734161446925,-567.38,0.00021249,3]
[345341747,1734161446934,-233.4,0.00021249,3]
[345341748,1734161446944,-536.9,0.00021249,3]
[345341749,1734161446954,-500.0,0.00021249,3]
[345341750,1734161446963,-500.0,0.00021249,3]
[345341751,1734161446971,-500.0,0.00021249,3]
[345341752,1734161446980,-500.0,0.00021249,3]
[345341753,1734161446989,-644.89,0.00021249,3]
[345341755,1734161446999,-329.21075245,0.00021249,3]
[345341757,1734161447008,-500.0,0.00021249,3]
[345341759,1734161447019,-500.0,0.00021249,3]
[345341761,1734161447028,-500.0,0.00021249,3]
[345341763,1734161447037,-500.0,0.00021249,3]
[345341765,1734161447047,-500.0,0.00021249,3]
[345341767,1734161447056,-513.26,0.00021249,3]
[345341769,1734161447066,-500.0,0.00021249,3]
[345341770,1734161447075,-500.0,0.00021249,3]
[345341772,1734161447085,-500.0,0.00021249,3]
[345341774,1734161447094,-500.0,0.00021249,3]
[345341776,1734161447104,-500.0,0.00021249,3]
[345341778,1734161447112,-646.74,0.00021249,3]
[345341780,1734161447122,-500.0,0.00021249,3]
[345341781,1734161447131,-500.0,0.00021249,3]
[345341782,1734161447140,-500.0,0.00021249,3]
[345341783,1734161447149,-413.15,0.00021249,3]
[345341784,1734161447157,-500.0,0.00021249,3]
[345341785,1734161447166,-500.0,0.00021249,3]
[345341786,1734161447175,-500.0,0.00021249,3]
[345341787,1734161447184,-205.89071155,0.00021249,3]
[345341788,1734161447193,-500.0,0.00021249,3]
[345341789,1734161447203,-416.94,0.00021249,3]
[345341790,1734161447212,-500.0,0.00021249,3]
[345341791,1734161447225,-416.44,0.00021249,3]
[345341792,1734161447234,-500.0,0.00021249,3]
[345341793,1734161447244,-500.0,0.00021249,3]
[345341794,1734161447253,-201.24,0.00021249,3]
[345341795,1734161447263,-500.0,0.00021249,3]
[345341796,1734161447279,-500.0,0.00021249,3]
[345341797,1734161447289,-500.0,0.00021249,3]
[345341798,1734161447298,-500.0,0.00021249,3]
[345341799,1734161447307,-500.0,0.00021249,3]
[345341800,1734161447316,-486.97,0.00021249,3]
[345341801,1734161447326,-285.13,0.00021249,3]
[345341802,1734161447335,-412.02,0.00021249,3]
[345341803,1734161447345,-500.0,0.00021249,3]
[345341804,1734161447355,-500.0,0.00021249,3]
[345341805,1734161447364,-500.0,0.00021249,3]
[345341806,1734161447374,-500.0,0.00021249,3]
[345341807,1734161447383,-598.52,0.00021249,3]
[345341808,1734161447393,-500.0,0.00021249,3]
[345341809,1734161447402,-500.0,0.00021249,3]
[345341810,1734161447412,-500.0,0.00021249,3]
[345341811,1734161447421,-500.0,0.00021249,3]
[345341812,1734161447430,-500.0,0.00021249,3]
[345341813,1734161447439,-500.0,0.00021249,3]
[345341814,1734161447448,-500.0,0.00021249,3]
[345341815,1734161447458,-500.0,0.00021249,3]
[345341816,1734161447467,-220.22,0.00021249,3]
[345341817,1734161447476,-500.0,0.00021249,3]
[345341819,1734161447485,-500.0,0.00021249,3]
[345341820,1734161447495,-500.0,0.00021249,3]
[345341822,1734161447504,-500.0,0.00021249,3]
[345341824,1734161447513,-459.7,0.00021249,3]
[345341826,1734161447527,-519.56983125,0.00021249,3]
[345341828,1734161447537,-500.0,0.00021249,3]
[345341830,1734161447546,-2000.0,0.00021249,2]
[345341832,1734161447555,-20000.0,0.0002125,3]
[345341834,1734161447565,-181561.55387911,0.0002125,4]
[345341836,1734161447575,-4633.6645752,0.0002125,2]
[345341838,1734161447584,-6283.1812228,0.0002125,2]
[345341840,1734161447598,-708.0,0.0002125,2]
[345341843,1734161447608,-704.0,0.0002125,2]
[345341844,1734161447618,-11247285.28039039,0.0002125,2]
[345341850,1734161447784,-1164.84523722,0.0002125,2]
[345341851,1734161447796,-6774.60597406,0.0002125,2]
[345341852,1734161447844,-500.0,0.00021098,3]
[345341853,1734161447854,-462.82,0.00021249,3]
[345341854,1734161447863,-11766.56064358,0.0002125,2]
[345341855,1734161447874,-95581.98974753,0.0002125,2]
[345341856,1734161447885,-454.95220707,0.0002125,2]
[345341864,1734161447996,-500.0,0.00021095,3]
[345341866,1734161448006,-536.08000014,0.0002125,2]
[345341867,1734161448029,-149.19435522,0.0002125,2]
[345341868,1734161448046,-3251.23707802,0.0002125,2]
[345341869,1734161448058,-6651.21941749,0.0002125,2]
[345341870,1734161448143,-578.9,0.0002125,2]
[345341871,1734161826795,2025.9914809,0.00021,120]
[345341873,1734162036270,2000.0,0.00020014,120]
[345341874,1734162163821,391.56,0.00010137,2]
[345341875,1734162442149,-391.56,0.00016813,2]
[345341876,1734162442173,-493.14211376,0.00017414,2]
[345341877,1734162560128,-174.37,0.00015488,2]
[345341878,1734162560151,-206.88973782,0.00016813,2]
[345341879,1734162560171,-1198.17024889,0.00017314,2]
[345341880,1734162560194,-711.57,0.00017383,2]
[345341881,1734162560214,-6.85788624,0.00017414,2]
[345341882,1734162560236,-500.0,0.00017414,2]
[345341883,1734162560258,-500.0,0.00017414,2]
[345341884,1734162561007,200.14938265,0.00017327,2]
[345341885,1734162565219,372.7339264,0.00016713,2]
[345341886,1734162569097,-510.57691988,0.00016713,2]
[345341887,1734162570220,883.31084628,0.00016964,2]
[345341888,1734162575225,883.31084628,0.00017214,2]
[345341889,1734162602559,150.0,0.00017214,2]
[345341890,1734162602732,150.0,0.00017214,2]
[345341891,1734162602913,150.0,0.00017214,2]
[345341892,1734162603345,150.0,0.00017214,2]
[345341893,1734162603515,150.0,0.00017214,2]
[345341894,1734162603688,161.98816574,0.00017214,2]
[345341895,1734162630735,500.0,0.00017414,2]
[345341897,1734162632328,-166.04,0.0001936,2]
[345341898,1734162632338,-250.0,0.00019442,2]
[345341899,1734162632348,-150.0,0.00019589,2]
[345341900,1734162632358,-227.90662971,0.00019606,2]
[345341901,1734162632377,-272.09337029,0.00019606,2]
[345341902,1734162632386,-711.57,0.00019647,2]
[345341903,1734162632396,-3739.07,0.0001966,2]
[345341904,1734162632405,-751.44,0.00019714,2]
[345341905,1734162632415,-233.16,0.00019811,2]
[345341906,1734162632424,-295.68,0.00019863,2]
[345341907,1734162632434,-250.0,0.00019863,2]
[345341908,1734162632443,-1231.0191,0.000199,2]
[345341909,1734162632454,-250.0,0.00019915,2]
[345341910,1734162632464,-294.73,0.0001998,2]
[345341911,1734162632473,-4928.1900354,0.00019999,2]
[345341912,1734162632484,-150.0,0.00019999,2]
[345341913,1734162632494,-24046.13568223,0.0002,2]
[345341914,1734162632505,-29932.55788102,0.0002,2]
[345341915,1734162632520,-2869.01452756,0.0002,2]
[345341916,1734162632530,-5134.76856671,0.00020062,2]
[345341947,1734162638088,-8135.29143329,0.00020062,2]
[345341948,1734162638099,-3635.94,0.00020096,2]
[345341949,1734162638108,-503.89,0.00020112,2]
[345341950,1734162638118,-1000.0,0.00020154,2]
[345341951,1734162638127,-200.0,0.00020154,2]
[345341952,1734162638138,-189.9,0.00020167,2]
[345341953,1734162638148,-303.969,0.0002019,2]
[345341954,1734162638157,-171.97,0.00020261,2]
[345341955,1734162638167,-859.59,0.00020552,2]
[345341956,1734162638177,-274.36,0.00020552,2]
[345341957,1734162638186,-435.63,0.00020552,2]
[345341958,1734162638195,-435.63,0.00020552,2]
[345341959,1734162638205,-435.63,0.00020552,2]
[345341960,1734162638214,-681.59394746,0.0002095,2]
[345341961,1734162638385,-1794.02825254,0.0002095,2]
[345341962,1734162638394,-982.5,0.00020993,2]
[345341963,1734162638403,-1000.0,0.00020999,2]
[345341964,1734162638412,-51314.32701979,0.00021,2]
[345341965,1734162638422,-14711.67,0.00021,3]
[345341966,1734162638431,-120145.0,0.00021,2]
[345341967,1734162638441,-996.02,0.00021019,2]
[345341968,1734162638450,-828.746,0.00021038,2]
[345341969,1734162638459,-1007.46,0.00021044,2]
[345341970,1734162638468,-36571.06068093,0.0002105,2]
[345341971,1734162638478,-500.0,0.00021073,2]
[345341972,1734162638489,-500.0,0.00021095,3]
[345341973,1734162638498,-500.0,0.00021095,3]
[345341974,1734162638509,-500.0,0.00021095,3]
[345341975,1734162638518,-500.0,0.00021095,3]
[345341976,1734162638528,-500.0,0.00021095,3]
[345341977,1734162638541,-500.0,0.00021095,3]
[345341978,1734162638550,-500.0,0.00021095,3]
[345341979,1734162638559,-500.0,0.00021095,3]
[345341980,1734162638569,-500.0,0.00021095,3]
[345341981,1734162638578,-500.0,0.00021095,3]
[345341982,1734162638588,-500.0,0.00021095,3]
[345341983,1734162638597,-393.40384396,0.00021095,3]
[345341984,1734162638606,-500.0,0.00021095,3]
[345341985,1734162638615,-500.0,0.00021095,3]
[345341986,1734162638624,-500.0,0.00021095,3]
[345341987,1734162638633,-500.0,0.00021095,3]
[345341988,1734162638644,-500.0,0.00021095,3]
[345341989,1734162638653,-500.0,0.00021095,3]
[345341990,1734162638662,-500.0,0.00021095,3]
[345341991,1734162638671,-500.0,0.00021095,3]
[345341992,1734162638680,-500.0,0.00021095,3]
[345341994,1734162638689,-500.0,0.00021095,3]
[345341996,1734162638698,-500.0,0.00021095,3]
[345341998,1734162638707,-500.0,0.00021095,3]
[345342000,1734162638716,-500.0,0.00021095,3]
[345342002,1734162638725,-500.0,0.00021095,3]
[345342004,1734162638735,-230.04315084,0.00021095,3]
[345342006,1734162638744,-508.59,0.00021095,3]
[345342008,1734162638753,-500.0,0.00021095,3]
[345342010,1734162638763,-500.0,0.00021095,3]
[345342012,1734162638771,-500.0,0.00021095,3]
[345342014,1734162638780,-500.0,0.00021095,3]
[345342016,1734162638789,-500.0,0.00021095,3]
[345342017,1734162638798,-500.0,0.00021095,3]
[345342018,1734162638807,-500.0,0.00021095,3]
[345342019,1734162638816,-179.27565452,0.00021095,3]
[345342020,1734162638824,-500.0,0.00021095,3]
[345342021,1734162638833,-500.0,0.00021095,3]
[345342022,1734162638845,-500.0,0.00021095,3]
[345342023,1734162638854,-500.0,0.00021095,3]
[345342024,1734162638862,-500.0,0.00021095,3]
[345342025,1734162638871,-500.0,0.00021095,3]
[345342026,1734162638881,-500.0,0.00021095,3]
[345342027,1734162638889,-500.0,0.00021095,3]
[345342028,1734162638898,-500.0,0.00021095,3]
[345342029,1734162638907,-500.0,0.00021095,3]
[345342031,1734162638916,-500.0,0.00021095,3]
[345342032,1734162638925,-500.0,0.00021095,3]
[345342034,1734162638934,-599.71,0.00021095,3]
[345342036,1734162638944,-500.0,0.00021095,3]
[345342038,1734162638953,-500.0,0.00021095,3]
[345342040,1734162638962,-644.85,0.00021095,3]
[345342042,1734162638972,-500.0,0.00021095,3]
[345342044,1734162638981,-500.0,0.00021095,3]
[345342046,1734162638990,-500.0,0.00021095,3]
[345342048,1734162638999,-528.25,0.00021095,3]
[345342050,1734162639007,-500.0,0.00021095,3]
[345342052,1734162639017,-500.0,0.00021095,3]
[345342054,1734162639026,-500.0,0.00021095,3]
[345342056,1734162639035,-500.0,0.00021095,3]
[345342058,1734162639043,-500.0,0.00021095,3]
[345342060,1734162639052,-500.0,0.00021095,3]
[345342062,1734162639061,-564.3,0.00021095,3]
[345342064,1734162639070,-500.0,0.00021095,3]
[345342066,1734162639079,-500.0,0.00021095,3]
[345342068,1734162639090,-527.1,0.00021095,3]
[345342070,1734162639099,-500.0,0.00021095,3]
[345342072,1734162639108,-500.0,0.00021095,3]
[345342073,1734162639118,-500.0,0.00021095,3]
[345342075,1734162639127,-509.60155979,0.00021095,3]
[345342077,1734162639137,-500.0,0.00021095,3]
[345342080,1734162639148,-500.0,0.00021095,3]
[345342082,1734162639157,-501.78092811,0.00021095,3]
[345342083,1734162639167,-500.0,0.00021095,3]
[345342086,1734162639178,-500.0,0.00021095,3]
[345342087,1734162639187,-500.0,0.00021095,3]
[345342090,1734162639196,-500.0,0.00021095,3]
[345342091,1734162639206,-500.0,0.00021095,3]
[345342093,1734162639215,-500.0,0.00021095,3]
[345342095,1734162639224,-500.0,0.00021095,3]
[345342097,1734162639233,-500.0,0.00021095,3]
[345342099,1734162639242,-500.0,0.00021095,3]
[345342101,1734162639252,-500.0,0.00021095,3]
[345342103,1734162639262,-500.0,0.00021095,3]
[345342105,1734162639271,-500.0,0.00021095,3]
[345342107,1734162639279,-500.0,0.00021095,3]
[345342109,1734162639289,-500.0,0.00021095,3]
[345342111,1734162639298,-500.0,0.00021095,3]
[345342113,1734162639307,-500.0,0.00021095,3]
[345342115,1734162639316,-500.0,0.00021095,3]
[345342117,1734162639325,-500.0,0.00021095,3]
[345342119,1734162639335,-500.0,0.00021095,3]
[345342121,1734162639344,-500.0,0.00021095,3]
[345342123,1734162639353,-500.0,0.00021095,3]
[345342125,1734162639363,-500.0,0.00021095,3]
[345342127,1734162639372,-500.0,0.00021095,3]
[345342129,1734162639381,-500.0,0.00021095,3]
[345342131,1734162639390,-520.8,0.00021095,3]
[345342133,1734162639399,-500.0,0.00021095,3]
[345342135,1734162639409,-272.44371786,0.00021095,3]
[345342137,1734162639418,-500.0,0.00021095,3]
[345342139,1734162639427,-500.0,0.00021095,3]
[345342141,1734162639436,-500.0,0.00021095,3]
[345342143,1734162639445,-500.0,0.00021095,3]
[345342145,1734162639456,-500.0,0.00021095,3]
[345342147,1734162639468,-500.0,0.00021095,3]
[345342149,1734162639477,-500.0,0.00021095,3]
[345342151,1734162639486,-500.0,0.00021095,3]
[345342153,1734162639495,-500.0,0.00021095,3]
[345342155,1734162639505,-416.44,0.00021095,3]
[345342157,1734162639513,-500.0,0.00021095,3]
[345342159,1734162639522,-329.21075245,0.00021095,3]
[345342175,1734162639666,-500.0,0.00021095,3]
[345342178,1734162639676,-500.0,0.00021095,3]
[345342179,1734162639685,-500.0,0.00021095,3]
[345342182,1734162639695,-500.0,0.00021095,3]
[345342184,1734162639706,-500.0,0.00021095,3]
[345342186,1734162639716,-500.0,0.00021095,3]
[345342187,1734162639725,-500.0,0.00021095,3]
[345342189,1734162639734,-220.22,0.00021095,3]
[345342191,1734162639743,-500.0,0.00021095,3]
[345342194,1734162639753,-365.68,0.00021095,3]
[345342196,1734162639762,-500.0,0.00021095,3]
[345342197,1734162639772,-500.0,0.00021095,3]
[345342200,1734162639781,-500.0,0.00021095,3]
[345342202,1734162639792,-500.0,0.00021095,3]
[345342203,1734162639801,-500.0,0.00021095,3]
[345342205,1734162639811,-285.13,0.00021095,3]
[345342207,1734162639820,-500.0,0.00021095,3]
[345342210,1734162639829,-500.0,0.00021095,3]
[345342212,1734162639838,-533.32,0.00021095,3]
[345342214,1734162639848,-500.0,0.00021095,3]
[345342215,1734162639857,-500.0,0.00021095,3]
[345342218,1734162639867,-500.0,0.00021095,3]
[345342220,1734162639876,-500.0,0.00021095,3]
[345342222,1734162639886,-500.0,0.00021095,3]
[345342224,1734162639895,-500.0,0.00021095,3]
[345342226,1734162639905,-500.0,0.00021095,3]
[345342228,1734162639915,-500.0,0.00021095,3]
[345342230,1734162639924,-500.0,0.00021095,3]
[345342231,1734162639934,-500.0,0.00021095,3]
[345342233,1734162639944,-500.0,0.00021095,3]
[345342235,1734162639954,-500.0,0.00021095,3]
[345342238,1734162639964,-500.0,0.00021095,3]
[345342239,1734162639974,-500.0,0.00021095,3]
[345342242,1734162639984,-500.0,0.00021095,3]
[345342243,1734162639993,-603.95,0.00021095,3]
[345342246,1734162640002,-500.0,0.00021095,3]
[345342248,1734162640013,-500.0,0.00021095,3]
[345342250,1734162640023,-500.0,0.00021095,3]
[345342252,1734162640032,-500.0,0.00021095,3]
[345342254,1734162640043,-500.0,0.00021095,3]
[345342256,1734162640052,-500.0,0.00021095,3]
[345342258,1734162640062,-500.0,0.00021095,3]
[345342259,1734162640072,-500.0,0.00021095,3]
[345342262,1734162640082,-500.0,0.00021095,3]
[345342263,1734162640096,-603.28,0.00021095,3]
[345342265,1734162640106,-500.0,0.00021095,3]
[345342267,1734162640115,-500.0,0.00021095,3]
[345342269,1734162640124,-500.0,0.00021095,3]
[345342271,1734162640136,-500.0,0.00021095,3]
[345342274,1734162640147,-500.0,0.00021095,3]
[345342275,1734162640158,-500.0,0.00021095,3]
[345342277,1734162640170,-500.0,0.00021095,3]
[345342279,1734162640180,-500.0,0.00021095,3]
[345342282,1734162640191,-500.0,0.00021095,3]
[345342284,1734162640200,-500.0,0.00021095,3]
[345342286,1734162640210,-500.0,0.00021095,3]
[345342287,1734162640218,-500.0,0.00021095,3]
[345342289,1734162640228,-500.0,0.00021095,3]
[345342291,1734162640238,-500.0,0.00021095,3]
[345342293,1734162640247,-500.0,0.00021095,3]
[345342295,1734162640257,-500.0,0.00021095,3]
[345342297,1734162640266,-613.61,0.00021095,3]
[345342299,1734162640275,-500.0,0.00021095,3]
[345342301,1734162640284,-500.0,0.00021095,3]
[345342303,1734162640293,-500.0,0.00021095,3]
[345342305,1734162640302,-500.0,0.00021095,3]
[345342307,1734162640312,-500.0,0.00021095,3]
[345342309,1734162640321,-500.0,0.00021095,3]
[345342311,1734162640330,-500.0,0.00021095,3]
[345342313,1734162640339,-500.0,0.00021095,3]
[345342315,1734162640349,-500.0,0.00021095,3]
[345342317,1734162640358,-500.0,0.00021095,3]
[345342319,1734162640368,-500.0,0.00021095,3]
[345342321,1734162640378,-536.9,0.00021095,3]
[345342323,1734162640387,-500.0,0.00021095,3]
[345342325,1734162640397,-500.0,0.00021095,3]
[345342327,1734162640407,-500.0,0.00021095,3]
[345342329,1734162640416,-500.0,0.00021095,3]
[345342331,1734162640425,-500.0,0.00021095,3]
[345342333,1734162640434,-500.0,0.00021095,3]
[345342335,1734162640443,-529.88,0.00021095,3]
[345342337,1734162640452,-500.0,0.00021095,3]
[345342339,1734162640462,-248.71961877,0.00021095,3]
[345342341,1734162640472,-500.0,0.00021095,3]
[345342343,1734162640481,-500.0,0.00021095,3]
[345342345,1734162640491,-500.0,0.00021095,3]
[345342347,1734162640500,-500.0,0.00021095,3]
[345342349,1734162640510,-500.0,0.00021095,3]
[345342351,1734162640519,-500.0,0.00021095,3]
[345342353,1734162640528,-500.0,0.00021095,3]
[345342355,1734162640537,-500.0,0.00021095,3]
[345342357,1734162640546,-500.0,0.00021095,3]
[345342359,1734162640556,-500.0,0.00021095,3]
[345342361,1734162640566,-500.0,0.00021095,3]
[345342363,1734162640575,-500.0,0.00021095,3]
[345342365,1734162640585,-500.0,0.00021095,3]
[345342367,1734162640594,-500.0,0.00021095,3]
[345342369,1734162640603,-1000.0,0.00021095,3]
[345342370,1734162640612,-500.0,0.00021095,3]
[345342373,1734162640622,-500.0,0.00021095,3]
[345342374,1734162640631,-500.0,0.00021095,3]
[345342376,1734162640640,-519.56983125,0.00021095,3]
[345342378,1734162640650,-500.0,0.00021095,3]
[345342380,1734162640659,-513.91692615,0.00021095,3]
[345342382,1734162640669,-500.0,0.00021095,3]
[345342384,1734162640679,-500.0,0.00021095,3]
[345342386,1734162640688,-500.0,0.00021095,3]
[345342388,1734162640697,-500.0,0.00021095,3]
[345342390,1734162640706,-500.0,0.00021095,3]
[345342392,1734162640715,-500.0,0.00021097,3]
[345342394,1734162640725,-500.0,0.00021097,3]
[345342396,1734162640734,-500.0,0.00021097,3]
[345342398,1734162640743,-632.00741236,0.00021097,3]
[345342400,1734162640752,-500.0,0.00021097,3]
[345342402,1734162640762,-500.0,0.00021097,3]
[345342404,1734162640771,-500.0,0.00021097,3]
[345342406,1734162640780,-500.0,0.00021097,3]
[345342408,1734162640790,-500.0,0.00021097,3]
[345342410,1734162640799,-500.0,0.00021097,3]
[345342412,1734162640808,-357.13,0.00021097,3]
[345342414,1734162640817,-500.0,0.00021097,3]
[345342416,1734162640826,-500.0,0.00021097,3]
[345342418,1734162640835,-500.0,0.00021097,3]
[345342420,1734162640845,-543.24,0.00021097,3]
[345342422,1734162640854,-500.0,0.00021097,3]
[345342424,1734162640863,-500.0,0.00021097,3]
[345342426,1734162640872,-303.28,0.00021097,3]
[345342428,1734162640882,-500.0,0.00021097,3]
[345342430,1734162640891,-500.0,0.00021097,3]